Cogmind - Beta 13 @@@ ROGUE MODE // 2024.04.18 @ 21:57:26 Player: Dosh Result: Escaped! Performance ------------- Evolutions (9) 4500 Regions Visited (25) 5000 Robots Destroyed (332) 1660 Value Destroyed (17800) 17800 Prototype IDs (47) 940 Alien Tech Used (0) 0 Bonus (12350) 12350 TOTAL SCORE: 42250 Bonus ------- High Alert Combat Kills 2751 Follower Combat Kills 2620 Entered Garrisons 1400 Used RIF Installer 4500 Win 3000 Friendly Fire -1921 Cogmind --------- Core Integrity 215/1600 Matter 174/300 Energy 96/100 System Corruption 2% Temperature Cool (0) Movement Core (50) Location To Epsilon Eridani Parts ------- > --- POWER (3) -------- (None) > --- PROPULSION (8) --- (None) > --- UTILITY (11) ----- Advanced Target Analyzer Relay Coupler [Specialist] (20) > --- WEAPON (3) ------- (None) > --- INVENTORY (5) ---- Biometal Leg Impulse Thruster Cooled Nova Cannon Peak State ------------ > --- POWER ------------ Micro Antimatter Reactor Micro Antimatter Reactor Quantum Reactor > --- PROPULSION ------- Impulse Thruster Impulse Thruster Array Impulse Thruster Array Impulse Thruster Array Improved Q-thruster > --- UTILITY ---------- Advanced Terrain Scanner Advanced Target Analyzer Advanced Force Field System Shield Relay Coupler [NC] Relay Coupler [Swarmer] Relay Coupler [Grunt] Relay Coupler [Grunt] Relay Coupler [Specialist] Relay Coupler [Hunter] Relay Coupler [Behemoth] > --- WEAPON ----------- Cooled Nova Cannon Advanced Remote Datajack Ionic Axe > --- INVENTORY -------- Quantum Reactor Impulse Thruster Impulse Thruster Improved Terrain Scanner Micro-nuke Launcher [Rating: 170] Favorites ----------- Power Antimatter Reactor Engine Light Angular Momentum Engine Power Core Micro Nuclear Core Reactor Antimatter Reactor Propulsion Light Treads Treads Light Treads Leg Myomer Leg Wheel Compact Wheel Flight Unit Impulse Thruster Array Utility Relay Coupler [Grunt] Device Advanced Cooling System Storage Cargo Storage Unit Processor Advanced Target Analyzer Hackware Relay Coupler [Grunt] Protection Improved Medium Armor Plating Weapon KE Penetrator Energy Gun Lightning Gun Energy Cannon Matter Neutralizer Ballistic Gun KE Penetrator Ballistic Cannon Hypervelocity Gauss Cannon Launcher Long-range Missile Launcher Special Weapon Improved Remote Datajack Slashing Weapon Ionic Axe Special Melee Weapon Datajack Build | -11 -10 -10 -10 -9 -8 -8 -7 -7 -7 -7 -6 -6 -5 -5 -5 -5 -5 -5 -4 -4 -3 -3 -2 -1 -1 ------- Run | Yrd Mat Min Exi Min Mat Gar Fac Gar Fac Gar Fac Gar Fac Was Fac Gar Fac Gar Fac Gar Res Tes Res Acc Com Slots Evolved 18 | . . . . . 4 . 2 . . . 2 . 2 . . . . . 2 . 2 . 2 2 . Power 2 | . . . . . . . . . . . 1 . . . . . . . . . . . . 1 . Propulsion 6 | . . . . . 2 . . . . . . . . . . . . . . . 2 . 1 1 . Utility 9 | . . . . . 2 . 2 . . . 1 . 1 . . . . . 2 . . . 1 . . Weapon 1 | . . . . . . . . . . . . . 1 . . . . . . . . . . . . Parts Attached 368 | 6 11 4 . 1 20 14 8 26 5 16 9 26 7 9 17 36 5 29 2 47 30 13 9 14 4 Power 36 | 1 1 1 . . 1 1 . 3 . 1 2 4 . 2 1 4 1 2 1 5 2 . 1 2 . Engine 7 | 1 1 1 . . . . . 1 . . . 2 . . . . . 1 . . . . . . . Core 14 | . . . . . 1 1 . 1 . . 2 1 . . . 3 . . 1 4 . . . . . Reactor 15 | . . . . . . . . 1 . 1 . 1 . 2 1 1 1 1 . 1 2 . 1 2 . Propulsion 80 | 2 1 1 . . 7 8 4 4 3 4 2 7 3 1 2 1 . 8 . 4 6 . 5 4 3 Treads 41 | 2 1 . . . 3 5 4 3 . 4 2 5 . . 1 1 . 5 . 4 1 . . . . Leg 4 | . . . . . . . . . . . . . . . . . . 1 . . 2 . . . 1 Wheel 21 | . . 1 . . 4 3 . 1 3 . . 2 3 1 1 . . 2 . . . . . . . Hover . | . . . . . . . . . . . . . . . . . . . . . . . . . . Flight 14 | . . . . . . . . . . . . . . . . . . . . . 3 . 5 4 2 Utility 123 | 1 7 1 . . 4 3 2 7 2 7 3 8 2 2 8 15 1 11 1 15 8 9 3 3 . Device 47 | . 1 . . . 1 1 1 2 1 2 2 3 . . 7 5 1 5 1 2 1 6 2 3 . Storage 8 | 1 3 . . . . . . . . 2 . 1 . . . . . . . . 1 . . . . Processor 5 | . . . . . . . . 1 . . . . 1 . . . . . . . 1 2 . . . Hackware 33 | . . . . . . 1 . 2 . 2 1 3 . 1 . 6 . 4 . 6 5 1 1 . . Protection 30 | . 3 1 . . 3 1 1 2 1 1 . 1 1 1 1 4 . 2 . 7 . . . . . Artifact . | . . . . . . . . . . . . . . . . . . . . . . . . . . Weapon 129 | 2 2 1 . 1 8 2 2 12 . 4 2 7 2 4 6 16 3 8 . 23 14 4 . 5 1 Energy Gun 10 | . . . . . 4 1 1 3 . . . . . . . . . . . 1 . . . . . Energy Cannon 18 | . . . . . . . 1 2 . 1 1 3 1 1 . 1 . 1 . . 1 3 . 1 1 Ballistic Gun 48 | 2 2 1 . . 4 1 . 6 . 1 . 1 . 2 2 8 1 5 . 8 4 . . . . Ballistic Cannon 17 | . . . . . . . . . . 1 . 1 . . 4 3 . . . 3 5 . . . . Launcher 8 | . . . . 1 . . . . . . . . . . . 1 . 1 . 2 1 . . 2 . Special Weapon 26 | . . . . . . . . . . 1 1 2 1 1 . 3 2 1 . 9 3 . . 2 . Impact Weapon . | . . . . . . . . . . . . . . . . . . . . . . . . . . Slashing Weapon 1 | . . . . . . . . . . . . . . . . . . . . . . 1 . . . Piercing Weapon . | . . . . . . . . . . . . . . . . . . . . . . . . . . Special Melee Weapon 1 | . . . . . . . . 1 . . . . . . . . . . . . . . . . . Unidentified Prototypes 13 | . . . . . 1 . . . . . . . . . 1 . . 1 . . 1 8 1 . . Corrupted Parts 1 | . . . . . . . . 1 . . . . . . . . . . . . . . . . . System Corruption 8 | . . . . . . . . 8 . . . . . . . . . . . . . . . . . Parts Lost 136 | . 1 3 . 4 4 4 4 12 1 3 3 14 . . 3 11 1 5 . 16 25 . . 12 10 Power 14 | . 1 . . . 1 . . . . . 1 3 . . . 3 . 1 . . 2 . . 2 . Propulsion 36 | . . 1 . . 2 2 . 4 1 . 1 4 . . . 1 1 2 . 3 6 . . 4 4 Utility 49 | . . 1 . 1 . 1 2 4 . 2 1 4 . . 2 5 . 2 . 8 7 . . 4 5 Weapon 37 | . . 1 . 3 1 1 2 4 . 1 . 3 . . 1 2 . . . 5 10 . . 2 1 Highest Loss Streak 16 | . 1 3 . 3 1 4 2 3 1 2 1 7 . . 1 5 1 1 . 5 16 . . 10 10 To Critical Strikes . | . . . . . . . . . . . . . . . . . . . . . . . . . . Average Slot Usage (%) 81 | . 97 98 100 64 89 88 80 71 99 78 80 74 76 75 72 73 80 85 68 81 73 67 78 80 44 Engine 3 | . 13 14 14 14 7 . . 3 . . . 3 5 1 . . . 3 . . . . . . . Core 2 | . . . . . 1 8 7 2 . . 6 6 . . . 4 4 . . 6 7 . . . . Reactor 3 | . . . . . . . . . 7 6 5 1 5 9 10 5 5 6 5 3 . 4 6 7 3 Treads 12 | . 28 21 14 14 17 17 26 14 11 13 13 13 3 . 3 5 4 17 15 12 12 . . . . Wheel 5 | . . 5 14 14 17 17 3 5 18 4 . . 9 17 8 5 5 1 . . . . . . . Device 7 | . . . . . 9 8 13 5 7 13 16 7 5 5 14 5 5 7 10 6 3 2 5 10 . Storage 6 | . 14 14 14 14 9 9 7 7 7 7 6 6 5 5 5 5 5 5 5 5 3 . . . . Hackware 11 | . . . . . . . . 8 15 9 16 20 17 9 5 14 17 12 10 22 22 32 33 28 21 Protection 6 | . 11 13 14 2 10 9 6 6 7 6 . 1 5 4 3 6 11 8 5 6 5 . . . . Energy Gun 1 | . . . . . 9 9 6 5 . . . . . . . . . . . . . . . . . Energy Cannon 1 | . . . . . . . . . . 2 4 4 2 1 . . . . . . . 4 5 3 . Ballistic Gun 10 | . 28 28 28 2 8 8 5 4 15 8 . 1 . 7 11 10 15 11 15 11 7 . . . . Ballistic Cannon 1 | . . . . . . . . . . 3 6 2 . . 4 3 . . . 2 3 . . . . Naked Turns . | . . . . . . . . . . . . . . . . . . . . . . . . . . Heaviest Build 232 | 10 55 55 55 56 78 75 77 82 73 176 188 184 180 227 230 205 199 202 197 232 212 40 47 66 25 Greatest Support 150 | 40 40 40 16 16 32 20 112 112 48 150 150 150 54 54 54 70 28 120 120 130 146 48 57 64 42 Greatest Overweight (x) 12 | . 1 3 3 3 7 6 3 2 4 2 1 10 11 4 7 7 7 12 1 2 7 . . 1 . Average Overweight (x) 2 | . . 2 3 3 2 3 . 1 1 . 1 1 7 3 5 6 6 3 1 1 . . . . . Largest Inventory Capacity 30 | 8 20 20 20 20 20 20 20 20 20 30 30 30 30 30 30 30 30 30 30 30 30 5 5 5 5 Average Capacity 24 | 7 15 20 20 20 20 20 20 20 20 27 30 30 30 30 30 30 30 30 30 30 26 5 5 5 5 Most Carried 30 | 3 15 15 14 14 20 20 20 20 20 30 30 30 30 30 30 30 30 30 29 30 30 5 5 5 5 Average Carried 22 | 1 10 14 13 13 18 19 19 15 19 26 27 26 26 29 29 27 29 28 28 27 25 4 4 4 3 Final Capacity 30 | 8 20 20 20 20 20 20 20 20 20 30 30 30 30 30 30 30 30 30 30 30 5 5 5 5 5 Final Carried 30 | 3 15 13 14 14 20 20 18 20 20 30 24 25 30 30 28 30 30 30 28 29 5 5 5 5 3 Class Distribution -------------------- 25% | Botlord-Tank 19% | Mutant 11% | Scavenger-Mutant 11% | Bothacker-Mutant 10% | Botlord-Mutant 8% | Botlord-Gunner 4% | Hauler-Mutant 3% | Botlord-Skirmisher Dominant Class ---------------- Mutant | -10/Materials Mutant | -10/Mines Mutant | -10/Exiles Mutant | -9/Mines Scavenger-Mutant | -8/Materials Scavenger-Mutant | -8/Garrison Mutant | -7/Factory Bothacker-Mutant | -7/Garrison Bothacker-Mutant | -7/Factory Bothacker-Mutant | -7/Garrison Botlord-Mutant | -6/Factory Hauler-Mutant | -6/Garrison Botlord-Mutant | -5/Factory Botlord-Tank | -5/Waste Botlord-Gunner | -5/Factory Botlord-Tank | -5/Garrison Botlord-Tank | -5/Factory Botlord-Tank | -5/Garrison Botlord-Skirmisher | -4/Factory Botlord-Tank | -4/Garrison Scavenger-Tank | -3/Research Mutant | -3/Testing Mutant | -2/Research Botlord-Sprinter | -1/Access Botlord-Sprinter | -1/Command Resources | -11 -10 -10 -10 -9 -8 -8 -7 -7 -7 -7 -6 -6 -5 -5 -5 -5 -5 -5 -4 -4 -3 -3 -2 -1 -1 ----------- Run | Yrd Mat Min Exi Min Mat Gar Fac Gar Fac Gar Fac Gar Fac Was Fac Gar Fac Gar Fac Gar Res Tes Res Acc Com Matter Collected 13366 | 213 557 167 . 55 621 521 145 504 154 1145 257 967 39 418 1984 1623 217 915 57 1631 809 121 32 158 56 Remotely 544 | . . . . . . . . . . . . . . . 364 180 . . . . . . . . . Salvage Created 15556 | . 758 170 . 109 1954 1141 257 1352 98 1656 282 1343 39 582 1649 1204 154 469 . 1205 754 121 32 210 17 Parts 733 | . 43 13 . 5 100 68 9 51 3 57 16 47 2 7 85 66 10 29 . 45 47 4 5 21 . Haulers Intercepted 6 | . 2 . . . 4 . . . . . . . . . . . . . . . . . . . . Recyclers Shooed 8 | . . 1 . . 2 . . . . . . . . . 4 . . . . . 1 . . . . Parts Field Recycled . | . . . . . . . . . . . . . . . . . . . . . . . . . . Retrieved Matter . | . . . . . . . . . . . . . . . . . . . . . . . . . . Parts Self-Destructed . | . . . . . . . . . . . . . . . . . . . . . . . . . . Prevented . | . . . . . . . . . . . . . . . . . . . . . . . . . . Kills | -11 -10 -10 -10 -9 -8 -8 -7 -7 -7 -7 -6 -6 -5 -5 -5 -5 -5 -5 -4 -4 -3 -3 -2 -1 -1 ------- Run | Yrd Mat Min Exi Min Mat Gar Fac Gar Fac Gar Fac Gar Fac Was Fac Gar Fac Gar Fac Gar Res Tes Res Acc Com Combat Hostiles Destroyed 284 | . 15 6 . 10 30 34 3 23 2 22 6 28 . 2 23 26 2 13 . 21 13 1 . 3 1 Melee 4 | . . . . . . 2 1 . . . . . . . . . . . . . . . . 1 . Guns 183 | . 15 6 . . 29 28 2 20 2 16 . 7 . 2 15 16 2 9 . 8 6 . . . . Cannons 57 | . . . . . . . . 3 . 5 4 18 . . 6 7 . . . 6 6 . . 1 1 AOE 32 | . . . . 10 1 2 . . . . 1 . . . 2 3 . 4 . 7 1 . . 1 . Classes Destroyed 22 | . 7 . . 2 3 2 . 1 . 1 1 3 . 1 . . . . . . . 1 . . . Worker 14 | . 1 . . . 3 . . . . . . . 2 . 6 . 1 . . . 1 . . . . Builder 5 | . . . . . . . . . . . 1 . . . 2 . . . . . 1 . . 1 . Tunneler 6 | . 1 1 . . . . . . . . . . . . . . . . . . . . 1 3 . Hauler 6 | . 2 . . . 4 . . . . . . . . . . . . . . . . . . . . Recycler 7 | . 1 . . . 1 . 1 . . . . . . . 4 . . . . . . . . . . Operator 6 | . . . . . 2 . 1 . . . . . . . 1 . 1 . . . . . 1 . . Watcher 6 | . 2 . . . 3 . . . . . 1 . . . . . . . . . . . . . . Swarmer 71 | . 3 4 . . 5 19 . . . 7 . 3 . . 9 9 . 7 . 4 . . . . 1 Cutter 9 | . . . . . . . . . . . . 3 . . . 2 . . . 2 . . . 2 . Saboteur 3 | . . . . . . 3 . . . . . . . . . . . . . . . . . . . Grunt 90 | . 12 2 . 1 18 . 1 11 1 5 3 14 . . 3 5 2 3 . 6 3 . . . . Brawler 11 | . . . . . . 4 . . . 5 1 . . . . 1 . . . . . . . . . Duelist 7 | . . . . . 1 . . 3 . 1 . 1 . . . . . . . 1 . . . . . Researcher 1 | . . . . . . . . . . . . . . . . . . . . . . 1 . . . Sentry 36 | . . . . . 5 7 2 6 1 . . 3 . . 2 4 . . . 5 1 . . . . Specialist 2 | . . . . . . . . . . 1 . 1 . . . . . . . . . . . . . Hunter 17 | . . . . 1 1 2 . . . 3 1 . . . 5 . . . . 2 1 1 . . . Programmer 29 | . . . . . . . . 3 . . 1 2 . . 3 6 . 3 . 2 8 . . 1 . Heavy 1 | . . . . . . . . . . . . 1 . . . . . . . . . . . . . Behemoth 3 | . . . . . . . . . . . . 1 . . 1 . . . . 1 . . . . . Compactor 2 | . . . . . . . . . . . . . . 2 . . . . . . . . . . . Assembled 10 | . . . . 10 . . . . . . . . . . . . . . . . . . . . . Best Kill Streak 11 | . 5 3 . 10 5 9 2 11 1 8 3 5 2 1 10 5 1 4 . 5 5 1 1 3 1 Combat Bots Only 11 | . 3 2 . 10 4 9 1 11 1 8 2 5 . 1 7 5 1 4 . 5 4 1 . 2 1 Max Kills in Single Turn 3 | . 1 1 . 3 1 2 1 2 1 2 2 2 1 1 2 2 1 3 . 2 3 1 1 1 1 Gunslinging 1 | . . . . . . . . . . . . . . . . 1 . . . . . . . . . Exploded 3 | . . . . 3 1 2 . . . . 1 . . . 1 2 . 2 . 2 1 . . 1 . Melee 1 | . . . . . . 1 1 . . . . . . . . . . . . . . . . 1 . Uniques/NPCs Destroyed . | . . . . . . . . . . . . . . . . . . . . . . . . . . Combat | -11 -10 -10 -10 -9 -8 -8 -7 -7 -7 -7 -6 -6 -5 -5 -5 -5 -5 -5 -4 -4 -3 -3 -2 -1 -1 -------- Run | Yrd Mat Min Exi Min Mat Gar Fac Gar Fac Gar Fac Gar Fac Was Fac Gar Fac Gar Fac Gar Res Tes Res Acc Com Hostile Shots Fired 2627 | . 81 45 . 18 107 119 303 277 25 152 51 217 . . 186 173 13 95 . 195 239 37 90 75 129 Missed 814 | . 22 7 . 5 34 29 126 95 13 28 7 38 . . 53 41 3 35 . 42 66 24 61 36 49 Damage Taken 29749 | . 657 411 . 301 1057 1016 1361 2072 124 1778 587 2703 . . 2739 2332 255 701 . 4155 3891 158 803 833 1815 Core 4410 | . 86 67 . 42 75 79 99 270 16 204 47 150 . . 268 254 . 15 . 269 792 39 253 106 1279 Absorbed by Shields 1697 | . . . . . . . 168 70 . . 180 473 . . 6 370 . . . . . . . 192 238 Reduced by Siege Mode 890 | . . . . . . . . . . 211 44 253 . . 66 54 . . . 190 72 . . . . Ignored by Resistances 551 | . . . . . . . . . 8 388 . . . . . 24 . 14 . 117 . . . . . Regen/Repaired (Parts) 110 | . 110 . . . . . . . . . . . . . . . . . . . . . . . . Core Remaining (%) 53 | 100 . . . 22 . 72 . . . 15 . 76 . . . . . 46 . 76 . 36 82 . 13 Volleys Fired 1184 | . 87 25 . 9 120 93 16 96 9 108 17 119 7 44 88 94 16 57 . 99 63 4 . 11 2 Largest 3 | . 2 2 . 2 2 2 2 2 2 2 2 2 1 2 3 3 3 3 . 3 3 2 . 1 1 Hottest 191 | . 40 40 . 50 110 80 120 120 70 170 170 170 120 105 155 155 94 121 . 129 191 110 . 150 50 Shots Fired 2246 | . 174 51 . 11 237 187 30 150 17 203 32 170 7 64 239 198 32 108 . 203 114 6 . 11 2 Gun 1727 | . 174 51 . 4 237 187 28 139 17 174 . 47 . 42 174 122 27 88 . 154 62 . . . . Cannon 403 | . . . . . . . 2 11 . 24 30 114 5 11 65 64 . 7 . 20 36 6 . 7 1 Launcher 20 | . . . . 7 . . . . . . . . . . . 4 . 2 . 5 1 . . 1 . Special 96 | . . . . . . . . . . 5 2 9 2 11 . 8 5 11 . 24 15 . . 3 1 Kinetic 1682 | . 174 51 . 4 110 94 14 71 17 190 15 103 . 42 239 174 27 88 . 174 95 . . . . Thermal 121 | . . . . . . . 2 14 . 8 15 41 5 11 . 12 . . . . 3 2 . 7 1 Explosive 20 | . . . . 7 . . . . . . . . . . . 4 . 2 . 5 1 . . 1 . Electromagnetic 327 | . . . . . 127 93 14 65 . . . 17 . . . . . 7 . . . 4 . . . Robot Hit Streak 49 | . 17 10 . 2 12 13 6 19 8 49 6 17 5 18 25 21 5 17 . 43 12 2 . 3 4 Robot Miss Streak 6 | . 5 3 . 2 4 6 1 3 1 3 3 4 1 3 5 4 2 4 . 3 5 1 . 4 . Penetration Max 3 | . . . . . . . . 1 1 2 . 1 . . 1 3 . 1 . 1 1 . . . . Secondary Targets 22 | . 2 2 . . 3 1 1 4 . 2 . . . . 1 3 . . . 1 2 . . . . Max Gunslinging Chain 1 | . 1 1 . . 1 1 1 1 . 1 . . . . 1 1 . . . 1 1 . . . . Shots Hit Robots 1409 | . 99 34 . 5 137 97 22 99 14 158 17 115 5 49 137 109 15 49 . 153 73 6 3 11 2 Core Hits 611 | . 44 12 . 19 69 43 9 49 4 61 8 45 2 5 64 59 6 26 . 48 29 . 2 6 1 Critical Kills 33 | . . . . . 1 . 1 1 . 1 1 1 . . 11 8 . . . 4 3 1 . . . Critical Parts Destroyed 52 | . 1 . . . . 1 . 1 . . . . . . 27 13 1 1 . 4 3 . . . . Critical Strikes 112 | . 1 . . . 5 1 2 2 . 1 2 8 . . 46 22 1 1 . 11 6 3 . . . Meltdown 3 | . . . . . . . . . . . 1 1 . . . . . . . . . 1 . . . Destroy 94 | . 1 . . . 1 1 1 2 . 1 . . . . 46 22 1 1 . 11 6 . . . . Blast 8 | . . . . . . . . . . . 1 7 . . . . . . . . . . . . . Corrupt 7 | . . . . . 4 . 1 . . . . . . . . . . . . . . 2 . . . Melee Attacks 41 | . . . . . . . . 1 . . . . . . . . . . . . . 8 13 19 . Impact . | . . . . . . . . . . . . . . . . . . . . . . . . . . Slashing 40 | . . . . . . . . . . . . . . . . . . . . . . 8 13 19 . Piercing . | . . . . . . . . . . . . . . . . . . . . . . . . . . Sneak Attacks 8 | . . . . . . . . . . . . . . . . . . . . . . 2 2 4 . Combat Hostiles . | . . . . . . . . . . . . . . . . . . . . . . . . . . Follow-up Attacks . | . . . . . . . . . . . . . . . . . . . . . . . . . . Damage Inflicted 37021 | . 926 346 . 694 2762 1841 441 2298 366 4449 751 3880 174 1008 3471 3208 240 1707 . 4425 2463 389 260 881 41 Guns 24720 | . 905 332 . 33 2649 1772 383 1903 366 3945 . 909 . 703 2407 2219 240 1267 . 3442 1245 . . . . Cannons 7906 | . . . . . . . . 395 . 504 552 2971 174 305 705 747 . . . 187 949 163 . 213 41 Explosions 3196 | . . . . 661 113 69 . . . . 199 . . . 283 226 . 440 . 796 264 . . 145 . Melee 1009 | . . . . . . . . . . . . . . . . . . . . . . 226 260 523 . Ramming 190 | . 21 14 . . . . 58 . . . . . . . 76 16 . . . . 5 . . . . Kinetic 25353 | . 905 332 . 33 1144 817 172 956 366 4301 262 2415 . 703 3112 2626 240 1267 . 3629 2073 . . . . Thermal 3648 | . . . . . 113 69 . 395 . 148 461 1226 174 305 . 340 . . . . 121 42 . 213 41 Explosive 2815 | . . . . 661 . . . . . . . . . . 283 226 . 440 . 796 264 . . 145 . Electromagnetic 4006 | . . . . . 1505 955 211 947 . . 28 239 . . . . . . . . . 121 . . . Impact . | . . . . . . . . . . . . . . . . . . . . . . . . . . Slashing 1009 | . . . . . . . . . . . . . . . . . . . . . . 226 260 523 . Piercing . | . . . . . . . . . . . . . . . . . . . . . . . . . . Highest Corruption 33 | . 1 1 1 7 2 2 . 12 14 14 . 5 . 17 20 32 32 33 5 10 24 24 2 2 2 Average Corruption 14 | . 1 1 1 5 2 2 . 10 12 14 . 4 . 14 17 25 32 32 5 7 12 24 1 1 2 Corruption Purged . | . . . . . . . . . . . . . . . . . . . . . . . . . . Corruption Blocked . | . . . . . . . . . . . . . . . . . . . . . . . . . . Effects 640 | . 5 6 6 6 5 19 . 12 22 76 . 4 . 17 108 100 34 120 . 57 24 13 2 2 2 Message Errors 143 | . 1 2 1 2 2 4 . 1 5 13 . 1 . 1 22 27 10 30 . 11 4 5 . . 1 Matter Fused 156 | . 1 . 2 2 . 6 . 4 6 18 . 1 . 7 27 19 7 27 . 18 6 4 . 1 . Heat Flow Errors 77 | . 2 . 1 . . 1 . 1 2 11 . 1 . 2 14 12 2 18 . 6 2 . . 1 1 Energy Discharges 73 | . . . 1 2 2 2 . 1 4 6 . 1 . 2 10 8 5 12 . 8 6 2 1 . . Parts Rejected 9 | . . . . . . 1 . . . 2 . . . 2 1 1 . 2 . . . . . . . Parts Fused 10 | . . . . . . . . . . 1 . . . . 4 1 2 1 . 1 . . . . . Data Loss (minor) 69 | . 1 2 1 . 1 2 . 3 2 8 . . . 1 8 12 6 12 . 6 4 . . . . Data Loss (major) 22 | . . . . . . . . . . 5 . . . . 5 3 . 5 . 2 . 1 1 . . Misfires 24 | . . 2 . . . 2 . 1 1 3 . . . . 6 3 1 4 . 1 . . . . . Alerts 8 | . . . . . . . . . . . . . . 1 . 3 . 2 . 1 . 1 . . . Misdirections 3 | . . . . . . . . . . . . . . . . 1 . 2 . . . . . . . Weapon Failures 46 | . . . . . . 1 . 1 2 9 . . . 1 11 10 1 5 . 3 2 . . . . Overload Shots 2 | . . . . . . . . . . . . . . . . . . . . . . . . 2 . Overflow Damage 980 | . . . . . . . . 98 . 33 89 29 37 . 2 12 . 16 . 98 74 121 67 304 . Projectiles 287 | . . . . . . . . 98 . 33 . 29 37 . 2 12 . . . . 54 . . 22 . Explosions 264 | . . . . . . . . . . . 89 . . . . . . 16 . 98 20 . . 41 . Melee 429 | . . . . . . . . . . . . . . . . . . . . . . 121 67 241 . Knockbacks 24 | . . . . . . . . . . . 2 7 . . 9 2 . . . . 4 . . . . Impact 1 | . . . . . . . . . . . . . . . 1 . . . . . . . . . . Kinetic 21 | . . . . . . . . . . . 2 7 . . 6 2 . . . . 4 . . . . Secondary 2 | . . . . . . . . . . . . . . . 2 . . . . . . . . . . Self-Inflicted Damage 598 | . . . . 68 . . . . . . 112 . . . 37 7 . . . 133 46 . . 195 . Shots 11 | . . . . 4 . . . . . . 2 . . . . . . . . 2 1 . . 2 . Rammed 21 | . 3 1 . . . . 10 . . . . . . . 5 2 . . . . . . . . . Targets Rammed 26 | . 4 1 . . . . 12 . . . . . . . 5 2 . . . . 2 . . . . Kicked 2 | . . . . . . . . . . . . . . . . . . . . . 2 . . . . Crushed 3 | . 1 . . . . . 2 . . . . . . . . . . . . . . . . . . Highest Temperature 522 | . 221 65 237 20 118 360 105 522 175 226 199 516 60 174 352 508 251 251 . 401 246 60 6 165 149 Average Temperature 93 | . 19 21 124 6 31 71 18 159 65 78 115 140 30 70 78 143 111 81 . 148 55 21 3 71 85 Received Heat Transfer 5410 | . 267 207 . 6 432 81 512 546 60 348 137 893 . . 147 201 90 57 . 1213 123 . 90 . . Effects 38 | . . . . . . 1 . 4 . 2 . 10 . . 3 13 . . . 5 . . . . . Shutdowns 10 | . . . . . . . . . . . . 5 . . . 4 . . . 1 . . . . . Energy Bleed 6 | . . . . . . 1 . 1 . . . 1 . . 1 1 . . . 1 . . . . . Interference 13 | . . . . . . . . . . 2 . 3 . . 2 3 . . . 3 . . . . . Matter Decay 1 | . . . . . . . . . . . . 1 . . . . . . . . . . . . . Short Circuit 1 | . . . . . . . . 1 . . . . . . . . . . . . . . . . . Damage (minor) 2 | . . . . . . . . 1 . . . . . . . 1 . . . . . . . . . Damage (major) 4 | . . . . . . . . . . . . . . . . 4 . . . . . . . . . Damage (core) 1 | . . . . . . . . 1 . . . . . . . . . . . . . . . . . Siege Activations 24 | . . . . . . . . . . 2 1 8 . . 5 4 . . . 2 2 . . . . Total Turns 662 | . . . . . . . . . . 81 15 177 . . 93 93 . . . 87 116 . . . . Longest Duration 98 | . . . . . . . . . . 60 15 35 . . 45 33 . . . 52 98 . . . . Robots Corrupted 4 | . . . . . 1 2 . . . . . 1 . . . . . . . . . . . . . Combat Hostiles 3 | . . . . . . 2 . . . . . 1 . . . . . . . . . . . . . Parts Fried 24 | . . . . . 6 4 4 9 . . . 1 . . . . . . . . . . . . . Impact Corruptions . | . . . . . . . . . . . . . . . . . . . . . . . . . . Robots Melted 5 | . . . . . . . . . . 1 1 2 . . . . . . . . . 1 . . . Combat Hostiles 5 | . . . . . . . . . . 1 1 2 . . . . . . . . . 1 . . . Parts Melted 18 | . . . . . . . . 2 . 1 . 8 2 . . . . . . 5 . . . . . Heat Transferred 5138 | . . . . . 200 100 . 720 . 148 396 1952 400 297 . 603 . . . . 111 37 . 137 37 Parts Sabotaged 4 | . . . . . . 4 . . . . . . . . . . . . . . . . . . . Parts Stolen . | . . . . . . . . . . . . . . . . . . . . . . . . . . Parts Stripped . | . . . . . . . . . . . . . . . . . . . . . . . . . . Power Chain Reactions 4 | . . . . . 2 1 . . . . 1 . . . . . . . . . . . . . . Alert | -11 -10 -10 -10 -9 -8 -8 -7 -7 -7 -7 -6 -6 -5 -5 -5 -5 -5 -5 -4 -4 -3 -3 -2 -1 -1 ------- Run | Yrd Mat Min Exi Min Mat Gar Fac Gar Fac Gar Fac Gar Fac Was Fac Gar Fac Gar Fac Gar Res Tes Res Acc Com Peak Influence 1614 | . 349 197 . 35 588 1334 790 1060 673 969 508 969 516 180 427 1101 596 1614 847 1191 724 324 419 480 249 Initial 847 | . . 86 . . 11 382 700 417 556 69 508 206 508 180 112 298 575 301 847 592 669 160 182 251 182 Average 533 | . 185 92 . 21 280 958 694 824 386 459 397 573 511 166 266 694 518 937 847 817 502 218 281 371 210 Maximum Alert Level 5 | . 1 . . . 2 4 3 3 2 3 2 3 2 . 2 4 2 5 3 4 3 1 2 2 1 Low Security (%) 16 | 100 54 100 . 100 29 . . . 8 24 . . . 100 29 . . . . . . 40 6 . 29 Level 1 26 | . 45 . . . 59 6 . . 54 28 42 33 . . 53 3 17 18 . . 30 60 90 66 70 Level 2 27 | . . . . . 11 16 22 21 37 17 57 27 100 . 16 64 82 9 . 42 59 . 2 33 . Level 3 21 | . . . . . . 25 77 78 . 30 . 38 . . . 30 . 31 100 44 10 . . . . Level 4 7 | . . . . . . 52 . . . . . . . . . 1 . 39 . 12 . . . . . Level 5 . | . . . . . . . . . . . . . . . . . . . . . . . . . . High Security . | . . . . . . . . . . . . . . . . . . . . . . . . . . Max Security . | . . . . . . . . . . . . . . . . . . . . . . . . . . Squads Dispatched 40 | . 3 . . . 6 . 6 . 1 . 2 . . . 7 . 2 . . . 3 4 3 3 . Investigation 7 | . 3 . . . 2 . 1 . . . . . . . 1 . . . . . . . . . . Extermination 6 | . . . . . . . 1 . . . 1 . . . 1 . . . . . 3 . . . . Reinforcement 17 | . . . . . 4 . 1 . 1 . . . . . 3 . 1 . . . . 1 3 3 . Assault 3 | . . . . . . . 1 . . . 1 . . . . . 1 . . . . . . . . Garrison 7 | . . . . . . . 2 . . . . . . . 2 . . . . . . 3 . . . Intercept . | . . . . . . . . . . . . . . . . . . . . . . . . . . Searches Triggered . | . . . . . . . . . . . . . . . . . . . . . . . . . . Construction Impeded 4 | . . . . . 1 . . . . . . . . . 2 . . . . . . . . 1 . Haulers Reinforced . | . . . . . . . . . . . . . . . . . . . . . . . . . . Active Scanning Responses . | . . . . . . . . . . . . . . . . . . . . . . . . . . Cargo Convoy Interrupts . | . . . . . . . . . . . . . . . . . . . . . . . . . . Stealth | -11 -10 -10 -10 -9 -8 -8 -7 -7 -7 -7 -6 -6 -5 -5 -5 -5 -5 -5 -4 -4 -3 -3 -2 -1 -1 --------- Run | Yrd Mat Min Exi Min Mat Gar Fac Gar Fac Gar Fac Gar Fac Was Fac Gar Fac Gar Fac Gar Res Tes Res Acc Com Distress Signals 12 | . 1 . . . 5 . . 1 . . . . . . . . . . . . 1 1 . 3 . Communications Jammed . | . . . . . . . . . . . . . . . . . . . . . . . . . . Distress Signals . | . . . . . . . . . . . . . . . . . . . . . . . . . . Times Spotted 572 | . 31 7 . 23 54 38 16 35 9 35 14 33 . 6 36 45 6 47 1 43 21 16 17 23 16 Peak Tracking Total 12 | . 3 2 . 11 6 10 12 10 3 8 6 6 . 3 7 10 5 6 1 7 5 8 7 9 11 Tactical Retreats 41 | . 4 . . 2 4 2 . . . 5 1 7 . . . 1 . 1 . . 3 5 3 3 . Traps | -11 -10 -10 -10 -9 -8 -8 -7 -7 -7 -7 -6 -6 -5 -5 -5 -5 -5 -5 -4 -4 -3 -3 -2 -1 -1 ------- Run | Yrd Mat Min Exi Min Mat Gar Fac Gar Fac Gar Fac Gar Fac Was Fac Gar Fac Gar Fac Gar Res Tes Res Acc Com Traps Triggered 57 | . 2 . . . 4 6 . 5 1 4 . 8 1 . 3 4 . 2 1 8 1 . 1 1 5 Indirectly . | . . . . . . . . . . . . . . . . . . . . . . . . . . Trap Hack Attempts . | . . . . . . . . . . . . . . . . . . . . . . . . . . Triggered . | . . . . . . . . . . . . . . . . . . . . . . . . . . Disarmed . | . . . . . . . . . . . . . . . . . . . . . . . . . . Reprogrammed . | . . . . . . . . . . . . . . . . . . . . . . . . . . Reused . | . . . . . . . . . . . . . . . . . . . . . . . . . . Traps Extracted . | . . . . . . . . . . . . . . . . . . . . . . . . . . Installed . | . . . . . . . . . . . . . . . . . . . . . . . . . . Triggered . | . . . . . . . . . . . . . . . . . . . . . . . . . . Machines | -11 -10 -10 -10 -9 -8 -8 -7 -7 -7 -7 -6 -6 -5 -5 -5 -5 -5 -5 -4 -4 -3 -3 -2 -1 -1 ---------- Run | Yrd Mat Min Exi Min Mat Gar Fac Gar Fac Gar Fac Gar Fac Was Fac Gar Fac Gar Fac Gar Res Tes Res Acc Com Machines Disabled 61 | . . . . . 3 1 . 2 2 4 4 3 . . 13 7 1 7 . 10 . 2 . 2 . Max in Single Turn 4 | . . . . . 1 1 . 1 . 2 3 1 . . 4 2 1 1 . 2 . 1 . 1 . Garrison Access 4 | . . . . . . . . . . . . . . . . . . . . . . . 1 3 . Garrison Relay 25 | . . . . . . 1 . 1 . 2 . 3 . . . 7 . 3 . 8 . . . . . Phase Generator 1 | . . . . . . . . . . 1 . . . . . . . . . . . . . . . Energy Cycler 1 | . . . . . . . . . . . . . . . . . . . . . . . . 1 . Machines Repaired . | . . . . . . . . . . . . . . . . . . . . . . . . . . Machines Dismantled . | . . . . . . . . . . . . . . . . . . . . . . . . . . Machines Sabotaged . | . . . . . . . . . . . . . . . . . . . . . . . . . . Overloaded Fab Kills . | . . . . . . . . . . . . . . . . . . . . . . . . . . Hacking | -11 -10 -10 -10 -9 -8 -8 -7 -7 -7 -7 -6 -6 -5 -5 -5 -5 -5 -5 -4 -4 -3 -3 -2 -1 -1 --------- Run | Yrd Mat Min Exi Min Mat Gar Fac Gar Fac Gar Fac Gar Fac Was Fac Gar Fac Gar Fac Gar Res Tes Res Acc Com Machines Accessed 55 | . 9 . 2 . 8 2 2 2 2 2 2 2 . . 4 3 2 2 1 2 2 . 3 3 . Terminals 35 | . 6 . . . 7 2 1 2 1 2 . 2 . . . 3 1 2 . 2 2 . 2 . . Fabricators 2 | . . . . . . . . . . . 1 . . . 1 . . . . . . . . . . Repair Stations 2 | . 1 . . . . . . . . . . . . . 1 . . . . . . . . . . Recycling Units 2 | . 2 . . . . . . . . . . . . . . . . . . . . . . . . Scanalyzers 1 | . . . . . . . . . . . . . . . 1 . . . . . . . . . . Garrison Access 11 | . . . . . 1 . 1 . 1 . 1 . . . 1 . 1 . 1 . . . 1 3 . Total Hacks 118 | . 24 . 2 . 18 6 3 5 6 7 2 5 . . 7 6 3 7 1 5 2 . 6 3 . Successful 51 | . 12 . 2 . 9 1 1 1 4 . 2 . . . 2 1 3 2 1 1 1 . 5 3 . Failed 67 | . 12 . . . 9 5 2 4 2 7 . 5 . . 5 5 . 5 . 4 1 . 1 . . Catastrophic 16 | . 2 . . . 2 . . . 1 3 . 1 . . 1 3 . 2 . . 1 . . . . Database Lockouts . | . . . . . . . . . . . . . . . . . . . . . . . . . . Manual 34 | . 16 . 2 . 11 3 2 . . . . . . . . . . . . . . . . . . Terminals 93 | . 19 . . . 17 6 2 5 5 7 . 5 . . . 6 2 7 . 5 2 . 5 . . Fabricators 3 | . . . . . . . . . . . 1 . . . 2 . . . . . . . . . . Repair Stations 4 | . 3 . . . . . . . . . . . . . 1 . . . . . . . . . . Recycling Units 2 | . 2 . . . . . . . . . . . . . . . . . . . . . . . . Scanalyzers 3 | . . . . . . . . . . . . . . . 3 . . . . . . . . . . Garrison Access 11 | . . . . . 1 . 1 . 1 . 1 . . . 1 . 1 . 1 . . . 1 3 . Terminal Hacks 33 | . 8 . 2 . 7 1 . 1 3 . . . . . . 1 2 2 . 1 1 . 4 . . Record 1 | . . . 1 . . . . . . . . . . . . . . . . . . . . . . Robot Analysis 7 | . 4 . . . 3 . . . . . . . . . . . . . . . . . . . . Prototype ID Bank 5 | . 4 . . . 1 . . . . . . . . . . . . . . . . . . . . Open Door 1 | . . . . . . . . . . . . . . . . . . 1 . . . . . . . Open DSF 1 | . . . . . . . . . . . . . . . . . . . . . . . 1 . . Emergency Access Points 3 | . . . . . . . . 1 . . . . . . . . . 1 . 1 . . . . . Scanalyzer Index 1 | . . . . . . . . . . . . . . . . . . . . . . . 1 . . Garrison Index 1 | . . . . . . . . . . . . . . . . . . . . . 1 . . . . Alert Level 1 | . . . . . 1 . . . . . . . . . . . . . . . . . . . . Unreport Threat 4 | . . . . . 1 . . . 3 . . . . . . . . . . . . . . . . Patrol Status 1 | . . . . . . . . . . . . . . . . . . . . . . . 1 . . Hauler Manifests 1 | . . . . . . . . . . . . . . . . . 1 . . . . . . . . Zone Layout 3 | . . . . . 1 . . . . . . . . . . . 1 . . . . . 1 . . Patrol Navigation 2 | . . . . . . 1 . . . . . . . . . 1 . . . . . . . . . Derelict Proto ID Bank 1 | . . . 1 . . . . . . . . . . . . . . . . . . . . . . Fabricator Hacks 1 | . . . . . . . . . . . 1 . . . . . . . . . . . . . . Network Status 1 | . . . . . . . . . . . 1 . . . . . . . . . . . . . . Repair Station Hacks 2 | . 2 . . . . . . . . . . . . . . . . . . . . . . . . Scan Component 1 | . 1 . . . . . . . . . . . . . . . . . . . . . . . . Repair 1 | . 1 . . . . . . . . . . . . . . . . . . . . . . . . Recycling Unit Hacks . | . . . . . . . . . . . . . . . . . . . . . . . . . . Scanalyzer 1 | . . . . . . . . . . . . . . . 1 . . . . . . . . . . Insert Component 1 | . . . . . . . . . . . . . . . 1 . . . . . . . . . . Garrison Access Hacks 11 | . . . . . 1 . 1 . 1 . 1 . . . 1 . 1 . 1 . . . 1 3 . Unlock Access 7 | . . . . . 1 . 1 . 1 . 1 . . . 1 . 1 . 1 . . . . . . Seal Access 4 | . . . . . . . . . . . . . . . . . . . . . . . 1 3 . Unauthorized Hacks 3 | . 2 . . . 1 . . . . . . . . . . . . . . . . . . . . Terminals 1 | . . . . . 1 . . . . . . . . . . . . . . . . . . . . Botnet 1 | . . . . . 1 . . . . . . . . . . . . . . . . . . . . Fabricators . | . . . . . . . . . . . . . . . . . . . . . . . . . . Repair Stations . | . . . . . . . . . . . . . . . . . . . . . . . . . . Recycling Units 2 | . 2 . . . . . . . . . . . . . . . . . . . . . . . . Tunnel 2 | . 2 . . . . . . . . . . . . . . . . . . . . . . . . Scanalyzers . | . . . . . . . . . . . . . . . . . . . . . . . . . . Garrison Access . | . . . . . . . . . . . . . . . . . . . . . . . . . . Data Cores Recovered 2 | . . . . . . . 1 . . . . . . . . . 1 . . . . . . . . Used 1 | . . . . . . . . . . . . . . . . . 1 . . . . . . . . Hacking Detections 36 | . 7 . . . 6 2 1 2 1 2 . 2 . . 4 2 1 2 . 2 1 . 1 . . Full Trace Events 13 | . 2 . . . 1 1 1 . . 2 . 1 . . 1 2 . 2 . . . . . . . Feedback Events . | . . . . . . . . . . . . . . . . . . . . . . . . . . Feedback Blocked . | . . . . . . . . . . . . . . . . . . . . . . . . . . Robot Schematics Acquired . | . . . . . . . . . . . . . . . . . . . . . . . . . . Robots Built . | . . . . . . . . . . . . . . . . . . . . . . . . . . Authchips . | . . . . . . . . . . . . . . . . . . . . . . . . . . Time . | . . . . . . . . . . . . . . . . . . . . . . . . . . Total Robot Build Rating . | . . . . . . . . . . . . . . . . . . . . . . . . . . Part Schematics Acquired 4 | . . . . . . . . . . . . . . . . . . . . . . 4 . . . Parts Built . | . . . . . . . . . . . . . . . . . . . . . . . . . . Authchips . | . . . . . . . . . . . . . . . . . . . . . . . . . . Time . | . . . . . . . . . . . . . . . . . . . . . . . . . . Total Part Build Rating . | . . . . . . . . . . . . . . . . . . . . . . . . . . Parts Repaired 1 | . 1 . . . . . . . . . . . . . . . . . . . . . . . . Time 16 | . 16 . . . . . . . . . . . . . . . . . . . . . . . . Parts Recycled . | . . . . . . . . . . . . . . . . . . . . . . . . . . Recycled Matter . | . . . . . . . . . . . . . . . . . . . . . . . . . . Retrieved Matter . | . . . . . . . . . . . . . . . . . . . . . . . . . . Retrieved Components . | . . . . . . . . . . . . . . . . . . . . . . . . . . Parts Scanalyzed 1 | . . . . . . . . . . . . . . . 1 . . . . . . . . . . Part Schematics Acquired . | . . . . . . . . . . . . . . . . . . . . . . . . . . Parts Damaged . | . . . . . . . . . . . . . . . . . . . . . . . . . . Bothacking | -11 -10 -10 -10 -9 -8 -8 -7 -7 -7 -7 -6 -6 -5 -5 -5 -5 -5 -5 -4 -4 -3 -3 -2 -1 -1 ------------ Run | Yrd Mat Min Exi Min Mat Gar Fac Gar Fac Gar Fac Gar Fac Was Fac Gar Fac Gar Fac Gar Res Tes Res Acc Com Used RIF Installer 9 | . . . . . . 1 . 1 . 2 . 2 . . . 1 . 1 . 1 . . . . . Hotswap 1 | . . . . . . . . . . . . . . . . 1 . . . . . . . . . Code Merge 1 | . . . . . . . . . . . . . . . . . . 1 . . . . . . . Command Fork 1 | . . . . . . . . 1 . . . . . . . . . . . . . . . . . Threat Obfuscator 1 | . . . . . . . . . . 1 . . . . . . . . . . . . . . . Zone Cloak 1 | . . . . . . . . . . . . 1 . . . . . . . . . . . . . Robot Detection 1 | . . . . . . . . . . . . . . . . . . . . 1 . . . . . Autooverride 1 | . . . . . . . . . . . . 1 . . . . . . . . . . . . . Autoassimilate 1 | . . . . . . . . . . 1 . . . . . . . . . . . . . . . Robots Hacked 84 | . . . . . . . . 1 . 3 2 7 1 6 2 13 2 12 . 24 5 2 1 2 1 Non-combat 1 | . . . . . . . . . . . . . 1 . . . . . . . . . . . . Combat 83 | . . . . . . . . 1 . 3 2 7 . 6 2 13 2 12 . 24 5 2 1 2 1 Autooverrided 10 | . . . . . . . . . . . . 1 . . 1 2 . 2 . 2 1 . 1 . . Autoassimilated 20 | . . . . . . . . . . . . 2 . . 1 5 . 3 . 6 . 2 . 1 . Robot Hacks Applied 59 | . . . . . . . . 1 . 3 2 4 1 9 . 7 3 7 . 16 4 . . 1 1 parse_system 2 | . . . . . . . . . . . 1 . . . . . . . . . 1 . . . . find_chute 1 | . . . . . . . . . . . . . 1 . . . . . . . . . . . . ignore_targets 8 | . . . . . . . . . . . . . . 8 . . . . . . . . . . . find_garrison 1 | . . . . . . . . . . . . . . . . . 1 . . . . . . . . link_fov 1 | . . . . . . . . . . . . . . 1 . . . . . . . . . . . spike_heat 1 | . . . . . . . . . . . . 1 . . . . . . . . . . . . . amplify_resonance 11 | . . . . . . . . . . 1 1 . . . . 2 1 1 . 3 . . . 1 1 reboot_system 1 | . . . . . . . . . . . . . . . . . . . . . 1 . . . . overwrite_iff 18 | . . . . . . . . . . . . 3 . . . 3 1 1 . 9 1 . . . . formatsys_high 15 | . . . . . . . . 1 . 2 . . . . . 2 . 5 . 4 1 . . . . Relay Couplers Released 95 | . . . . . . 3 . 5 . 6 . 11 . . . 26 . 10 . 34 . . . . . Machine Destruction 95 | . . . . . . 3 . 5 . 6 . 11 . . . 26 . 10 . 34 . . . . . Attached 30 | . . . . . . . . 1 . 2 1 3 . 1 . 6 . 4 . 6 5 1 . . . Merged Code Value 109 | . . . . . . . . . . . . . . . . . . . . 109 . . . . . Fabnet Peak Effective % . | . . . . . . . . . . . . . . . . . . . . . . . . . . Robots Rewired 28 | . . . 4 . . 1 . 6 . 2 . . 2 . . 2 . 11 . . . . . . . Allies Hacked 2 | . . . . . . . . . . . . . . . . . . 1 . 1 . . . . . Hacks Repelled . | . . . . . . . . . . . . . . . . . . . . . . . . . . Allies | -11 -10 -10 -10 -9 -8 -8 -7 -7 -7 -7 -6 -6 -5 -5 -5 -5 -5 -5 -4 -4 -3 -3 -2 -1 -1 -------- Run | Yrd Mat Min Exi Min Mat Gar Fac Gar Fac Gar Fac Gar Fac Was Fac Gar Fac Gar Fac Gar Res Tes Res Acc Com Total Allies 103 | . . 1 4 4 . 1 . 9 . 4 . 6 2 1 2 15 1 22 . 24 3 2 1 1 . Largest Group 10 | . . 1 4 3 3 1 . 6 2 4 4 1 . 3 1 4 1 10 6 3 1 1 1 1 . Highest-Rated Group 351 | . . 31 45 60 40 15 . 180 142 99 98 32 . 137 29 115 29 351 216 148 56 56 69 58 . Highest-Rated Ally 80 | . . 31 21 31 16 15 . 80 80 32 32 32 . 65 29 49 29 49 47 58 56 56 69 58 . Total Orders 1 | . . . . . . . . . . . . . . . . . . . . . . 1 . . . EXPLORE 1 | . . . . . . . . . . . . . . . . . . . . . . 1 . . . Ally Attacks 514 | . . 10 . 8 33 . . 36 19 27 10 14 . 99 8 55 1 125 3 53 6 4 3 . . Total Damage 14485 | . . 83 . 115 358 . . 1630 809 828 206 190 . 2157 132 1476 19 3676 132 2047 324 178 125 . . Kills 84 | . . 2 . 2 3 . . 10 4 6 1 1 . 4 2 10 . 32 . 5 2 . . . . Allies Corrupted 10 | . . . . . . . . 1 . . 1 . . 2 . . . . 3 1 2 . . . . Allies Melted 2 | . . . . . . . . 1 . . . . . . . . . . . 1 . . . . . Intel | -11 -10 -10 -10 -9 -8 -8 -7 -7 -7 -7 -6 -6 -5 -5 -5 -5 -5 -5 -4 -4 -3 -3 -2 -1 -1 ------- Run | Yrd Mat Min Exi Min Mat Gar Fac Gar Fac Gar Fac Gar Fac Was Fac Gar Fac Gar Fac Gar Res Tes Res Acc Com Robot Analysis Total 7 | . 4 . . . 3 . . . . . . . . . . . . . . . . . . . . Derelict Logs Recovered . | . . . . . . . . . . . . . . . . . . . . . . . . . . Drone Launches 1 | . . . . . . . . . . . . . . . . . . . . . . 1 . . . Drone Recoveries 1 | . . . . . . . . . . . . . . . . . . . . . . 1 . . . Exploration | -11 -10 -10 -10 -9 -8 -8 -7 -7 -7 -7 -6 -6 -5 -5 -5 -5 -5 -5 -4 -4 -3 -3 -2 -1 -1 ------------- Run | Yrd Mat Min Exi Min Mat Gar Fac Gar Fac Gar Fac Gar Fac Was Fac Gar Fac Gar Fac Gar Res Tes Res Acc Com Turns Passed 24519 | 93 1536 720 670 241 1526 1260 515 1165 437 1576 1088 1857 383 388 1993 1746 639 2265 63 1809 1371 270 376 412 120 Spaces Moved 12580 | 53 649 332 421 152 869 733 278 605 313 565 422 581 158 182 867 639 286 812 26 594 637 505 684 894 323 Core 243 | 2 . . . . . . . . . . . . . . . . . . . . 230 . . . 11 Treads 4056 | 51 649 161 . . 2 . 209 80 . 409 422 516 . . . 2 . 568 26 594 367 . . . . Legs 11 | . . . . . . . . . . . . . . . . . . . . . 11 . . . . Wheels 5846 | . . 171 421 152 867 733 69 525 313 156 . 65 158 182 867 637 286 244 . . . . . . . Hover . | . . . . . . . . . . . . . . . . . . . . . . . . . . Flight 2424 | . . . . . . . . . . . . . . . . . . . . . 29 505 684 894 312 Fastest Speed 28 | 50 160 145 145 145 115 125 125 115 115 115 240 240 138 138 138 190 190 190 243 240 39 39 34 30 28 Average Speed 154 | 155 191 194 145 145 130 125 152 133 122 200 240 242 202 146 187 199 202 238 243 243 165 39 35 31 31 Slowest Speed 800 | 160 240 320 145 145 400 170 320 240 160 240 240 800 265 153 205 320 205 320 243 325 610 39 39 119 50 Overloaded Moves . | . . . . . . . . . . . . . . . . . . . . . . . . . . Propulsion Burnouts . | . . . . . . . . . . . . . . . . . . . . . . . . . . Robots Hopped 23 | . . . . . . . . . . . . . . . . . . . . . . 8 7 1 7 Cave-ins Triggered . | . . . . . . . . . . . . . . . . . . . . . . . . . . Exploration Rate (%) 44 | 4 93 65 89 42 77 69 9 76 9 67 13 59 5 79 26 74 12 75 2 69 13 56 23 36 19 Regions Visited 25 Branch Regions 5 Pre-discovered Areas 4 | . 2 . 1 1 . . . . . . . . . . . . . . . . . . . . . Known Exits Taken 7 | . . . . . 1 . 1 . 1 . 1 . . . 1 . 1 . 1 . . . . . . Unknown Exits Taken 9 | 1 1 1 1 1 . . . . . . . . . . . . . . . . 1 1 1 1 . Scrap Searched 2 | . . 1 . 1 . . . . . . . . . . . . . . . . . . . . . Spaces Dug 51 | . . . . . . . 2 . . . . . . . . 1 7 19 . . . 4 7 11 . Terrain Destroyed 507 | . . . . 35 2 3 2 1 7 92 34 14 . . 53 62 10 50 . 59 30 5 7 41 . Melee 22 | . . . . . . . . . . . . . . . . . . . . . . 4 7 11 . Projectile 116 | . . . . . . . 2 . 7 17 9 14 . . 14 4 10 19 . 5 14 1 . . . AOE 366 | . . . . 35 2 3 . . . 74 25 . . . 38 58 . 31 . 54 16 . . 30 . Terrain Rammed . | . . . . . . . . . . . . . . . . . . . . . . . . . . Walls Destroyed . | . . . . . . . . . . . . . . . . . . . . . . . . . . Machines Disabled . | . . . . . . . . . . . . . . . . . . . . . . . . . . Actions | -11 -10 -10 -10 -9 -8 -8 -7 -7 -7 -7 -6 -6 -5 -5 -5 -5 -5 -5 -4 -4 -3 -3 -2 -1 -1 --------- Run | Yrd Mat Min Exi Min Mat Gar Fac Gar Fac Gar Fac Gar Fac Was Fac Gar Fac Gar Fac Gar Res Tes Res Acc Com Total 15662 | 61 795 361 481 162 1064 922 340 815 348 811 465 861 216 247 1071 940 321 1055 27 787 855 549 787 985 336 Wait 681 | . 32 . 1 . 34 26 10 19 15 38 10 112 . 1 40 76 10 2 . 18 105 19 83 27 3 Move 12513 | 52 648 331 420 151 868 731 278 604 312 564 422 580 158 181 867 638 285 811 25 593 636 488 669 891 310 Hop 21 | . . . . . . . . . . . . . . . . . . . . . . 8 7 1 5 Pick Up 170 | 3 8 . 1 1 12 6 5 14 2 16 5 10 5 3 19 20 1 14 . 11 8 1 1 3 1 Fast Attach 138 | 6 4 . . . 9 4 3 8 5 7 . 2 3 5 9 11 2 9 . 8 16 12 7 6 2 Attach 111 | . 1 3 . 1 8 5 2 9 . 7 6 11 3 . 5 9 . 8 2 15 8 1 1 4 2 Detach 40 | . 2 . . . 2 . 1 1 1 5 . . 2 2 4 5 . 4 . 4 . 2 . 3 2 Swap 119 | . 6 1 . . 3 5 3 9 . 2 3 13 1 4 3 16 3 12 . 24 6 . 1 4 . Drop 144 | . 3 . . . 8 2 10 7 4 13 2 . . 7 23 11 4 17 . 1 11 6 5 5 5 Fire 1184 | . 87 25 . 9 120 93 16 96 9 108 17 119 7 44 88 94 16 57 . 99 63 4 . 11 2 Melee 41 | . . . . . . . . 1 . . . . . . . . . . . . . 8 13 19 . Ram 7 | . . . . . . . . . . . . . . . 5 2 . . . . . . . . . Kick 2 | . . . . . . . . . . . . . . . . . . . . . 2 . . . . Crush 17 | . 4 1 . . . . 12 . . . . . . . . . . . . . . . . . . Escape Stasis 156 | . . . . . . 32 . 10 . 20 . 14 . . 8 39 . 4 . 14 . . . 11 4 Rewire 318 | . . . 59 . . 18 . 37 . 31 . . 37 . . 19 . 117 . . . . . . . Trap . | . . . . . . . . . . . . . . . . . . . . . . . . . . Miscellaneous . | . . . . . . . . . . . . . . . . . . . . . . . . . . Route ------- -11/Scrapyard -10/Materials (discovered 4 exits: [*Mat x3] / [*Min]) -10/Mines (discovered 2 exits: [*Mat] / *Exi) -10/Exiles -9/Mines -8/Materials (discovered 3 exits: *Fac x2 / Gar) -8/Garrison (discovered 3 exits: *Fac x3) -7/Factory (discovered 2 exits: [*Low] / Gar) -7/Garrison (discovered 3 exits: *Fac x3) -7/Factory -7/Garrison (discovered 2 exits: *Fac x2) -6/Factory (discovered 2 exits: [*Low] / Gar) -6/Garrison -5/Factory -5/Waste -5/Factory -5/Garrison (discovered 3 exits: *Fac x3) -5/Factory (discovered 4 exits: *Fac / [*Upp] / [*Ext] / Gar) -5/Garrison (discovered 2 exits: *Fac x2) -4/Factory -4/Garrison (discovered 3 exits: *Res x3) -3/Research -3/Testing -2/Research -1/Access -1/Command To Epsilon Eridani History --------- Turn | Location | Event 9 | -11/Scrapyard | Discovered new exit (range 16) 94 | -11/Scrapyard | Entered Materials 307 | -10/Materials | Build established: Mutant 412 | -10/Materials | Discovered new exit (range 5) 792 | -10/Materials | Discovered new exit (range 16) 955 | -10/Materials | Discovered new exit (range 9) 1285 | -10/Materials | Repaired Med. Armor Plating 1344 | -10/Materials | Discovered new exit (range 5) 1630 | -10/Materials | Entered Mines 1834 | -10/Mines | Discovered new exit (range 8) 1837 | -10/Mines | Received a Mining Laser from a helpful Derelict 2036 | -10/Mines | Core integrity fell below 50% 2070 | -10/Mines | Lost 3 parts (1n1u1w) 2341 | -10/Mines | Deemed a non-threat by the Exiles lab entrance 2341 | -10/Mines | Discovered new exit (range 5) 2350 | -10/Mines | Entered Exiles 2350 | -10/Exiles | Found Exiles lab destroyed 2598 | -10/Exiles | Opened EX-Vault 2612 | -10/Exiles | Found Gui. Plasma Cannon 2710 | -10/Exiles | Learned location of Zion (-7) 3008 | -10/Exiles | Discovered new exit (range 10) 3020 | -10/Exiles | Entered Mines 3020 | -9/Mines | Accompanied by 4 allies 3028 | -9/Mines | Escorted by a lone wolf Derelict 3047 | -9/Mines | Met a Derelict bent on vengeance 3048 | -9/Mines | Learned location of Storage (-9) 3052 | -9/Mines | Assembled infested the area 3091 | -9/Mines | Lost 3 allies 3092 | -9/Mines | Destroyed 10 combat bots 3109 | -9/Mines | Lost 3 parts (1u2w) 3196 | -9/Mines | Discovered new exit (range 14) 3202 | -9/Mines | Assisted by bots powering up and referring to "LRC-V3" 3261 | -9/Mines | Entered Materials 3261 | -8/Materials | Accompanied by 3 allies 3261 | -8/Materials | Evolved 4 slots: Propulsion x2, Utility x2 3621 | -8/Materials | Build established: Scavenger-Mutant 3876 | -8/Materials | Discovered new exit (range 9) 4639 | -8/Materials | Discovered new exit (range 15) 4744 | -8/Materials | Identified exit to Garrison 4787 | -8/Materials | Entered Garrison 4863 | -8/Garrison | Triggered checkpoint 4958 | -8/Garrison | Lost 4 parts (2n1u1w) 4971 | -8/Garrison | Triggered checkpoint 5057 | -8/Garrison | Triggered checkpoint 5106 | -8/Garrison | Garrison Relay disabled 5151 | -8/Garrison | Discovered new exit (range 12) 5357 | -8/Garrison | Destroyed 9 combat bots 5491 | -8/Garrison | Discovered new exit (range 15) 5642 | -8/Garrison | Discovered new exit (range 11) 5653 | -8/Garrison | Installed Relay Interface Framework 5679 | -8/Garrison | Triggered checkpoint 6047 | -8/Garrison | Entered Factory 6047 | -7/Factory | Evolved 2 slots: Utility x2 6237 | -7/Factory | Discovered new exit (range 5) 6412 | -7/Factory | Garrison activated, responded to threat 6447 | -7/Factory | First assault squad dispatched 6466 | -7/Factory | Build established: Mutant 6562 | -7/Factory | Identified exit to Garrison 6562 | -7/Factory | Entered Garrison 6650 | -7/Garrison | Expanded RIF knowledge: Command Fork 6713 | -7/Garrison | Triggered checkpoint 6788 | -7/Garrison | Lost 6 allies 6864 | -7/Garrison | Destroyed 11 combat bots 6874 | -7/Garrison | Lost 3 parts (2n1u) 6877 | -7/Garrison | Triggered checkpoint 6897 | -7/Garrison | Garrison Relay disabled 6998 | -7/Garrison | Triggered checkpoint 7006 | -7/Garrison | Triggered checkpoint 7047 | -7/Garrison | Discovered new exit (range 11) 7085 | -7/Garrison | Triggered checkpoint 7139 | -7/Garrison | Lost 3 parts (1n2w) 7195 | -7/Garrison | Build established: Bothacker-Mutant 7294 | -7/Garrison | Discovered new exit (range 11) 7322 | -7/Garrison | Triggered checkpoint 7441 | -7/Garrison | System corruption reached 10% 7465 | -7/Garrison | Found embedded Infiltrators 7583 | -7/Garrison | Core integrity fell below 50% 7602 | -7/Garrison | Lost 3 parts (2u1w) 7695 | -7/Garrison | Discovered new exit (range 9) 7708 | -7/Garrison | Triggered checkpoint 7727 | -7/Garrison | Entered Factory 7727 | -7/Factory | Accompanied by 2 allies 8045 | -7/Factory | Identified exit to Garrison 8164 | -7/Factory | Entered Garrison 8193 | -7/Garrison | Expanded RIF knowledge: Threat Obfuscation 8222 | -7/Garrison | Triggered checkpoint 8864 | -7/Garrison | Triggered checkpoint 8972 | -7/Garrison | Destroyed 8 combat bots 9026 | -7/Garrison | Phase Generator disabled 9102 | -7/Garrison | Discovered new exit (range 12) 9212 | -7/Garrison | Core integrity fell below 20% 9329 | -7/Garrison | Garrison Relay disabled 9388 | -7/Garrison | Garrison Relay disabled 9508 | -7/Garrison | Triggered checkpoint 9532 | -7/Garrison | Triggered checkpoint 9632 | -7/Garrison | Expanded RIF knowledge: Autoassimilate 9690 | -7/Garrison | Discovered new exit (range 5) 9740 | -7/Garrison | Entered Factory 9740 | -6/Factory | Accompanied by 4 allies 9740 | -6/Factory | Evolved 2 slots: Power x1, Utility x1 9933 | -6/Factory | Build established: Botlord-Mutant 9943 | -6/Factory | Discovered new exit (range 15) 10090 | -6/Factory | First assault squad dispatched 10215 | -6/Factory | Lost 4 allies 10827 | -6/Factory | Identified exit to Garrison 10828 | -6/Factory | Entered Garrison 10912 | -6/Garrison | Expanded RIF knowledge: Autooverride 10992 | -6/Garrison | Triggered checkpoint 11020 | -6/Garrison | Triggered checkpoint 11112 | -6/Garrison | Triggered checkpoint 11256 | -6/Garrison | Garrison Relay disabled 11298 | -6/Garrison | Garrison Relay disabled 11368 | -6/Garrison | Heavy support dispatched to Factory 11370 | -6/Garrison | Triggered checkpoint 11660 | -6/Garrison | Triggered checkpoint 11731 | -6/Garrison | Garrison Relay disabled 11760 | -6/Garrison | Build established: Hauler-Mutant 11796 | -6/Garrison | Discovered new exit (range 12) 12113 | -6/Garrison | Spotted B-75 Beast 12144 | -6/Garrison | Destroyed B-75 Beast 12162 | -6/Garrison | Lost 7 parts (2p1n2u2w) 12208 | -6/Garrison | Triggered checkpoint 12292 | -6/Garrison | Heavy support dispatched to Factory 12574 | -6/Garrison | Expanded RIF knowledge: Zone Cloak 12685 | -6/Garrison | Entered Factory 12685 | -5/Factory | Evolved 2 slots: Utility x1, Weapon x1 12804 | -5/Factory | Build established: Botlord-Mutant 13068 | -5/Factory | Sucked down chute 13068 | -5/Factory | Entered Waste 13069 | -5/Waste | Met a frightened Derelict 13078 | -5/Waste | Spotted C-40 Crusher 13080 | -5/Waste | Spotted C-40 Crusher 13083 | -5/Waste | EMP discharged 13083 | -5/Waste | System corruption reached 10% 13093 | -5/Waste | 2 allies followed down the chute 13097 | -5/Waste | Spotted C-40 Crusher 13098 | -5/Waste | Spotted C-40 Crusher 13105 | -5/Waste | Spotted C-40 Crusher 13149 | -5/Waste | Allies destroyed C-40 Crusher 13164 | -5/Waste | Spotted C-40 Crusher 13169 | -5/Waste | Allies destroyed C-40 Crusher 13178 | -5/Waste | Allies destroyed C-40 Crusher 13183 | -5/Waste | EMP discharged 13241 | -5/Waste | Destroyed C-40 Crusher 13250 | -5/Waste | Found Damper Plating 13267 | -5/Waste | Allies destroyed C-40 Crusher 13283 | -5/Waste | EMP discharged 13375 | -5/Waste | Destroyed C-40 Crusher 13383 | -5/Waste | EMP discharged 13424 | -5/Waste | Discovered new exit (range 12) 13456 | -5/Waste | Entered Factory 13541 | -5/Factory | Build established: Botlord-Tank 13589 | -5/Factory | Destroyed 7 combat bots 14001 | -5/Factory | Spotted B-75 Beast 14052 | -5/Factory | Destroyed B-75 Beast 14370 | -5/Factory | Build established: Botlord-Gunner 15349 | -5/Factory | Garrison activated, responded to threat 15449 | -5/Factory | Identified exit to Garrison 15449 | -5/Factory | Entered Garrison 15528 | -5/Garrison | Lost 5 parts (2p1n2u) 15609 | -5/Garrison | Triggered checkpoint 15682 | -5/Garrison | Garrison Relay disabled 15733 | -5/Garrison | Expanded RIF knowledge: Hotswap 15787 | -5/Garrison | Build established: Botlord-Tank 15851 | -5/Garrison | Triggered checkpoint 16126 | -5/Garrison | Discovered new exit (range 13) 16257 | -5/Garrison | Lost 7 allies 16294 | -5/Garrison | Lost 4 parts (1p2u1w) 16294 | -5/Garrison | Garrison Relay disabled 16553 | -5/Garrison | Triggered checkpoint 16631 | -5/Garrison | Triggered checkpoint 16661 | -5/Garrison | Discovered new exit (range 13) 16756 | -5/Garrison | Triggered checkpoint 16802 | -5/Garrison | Lost 4 allies 16839 | -5/Garrison | System corruption reached 30% 16872 | -5/Garrison | Core integrity fell below 50% 16913 | -5/Garrison | Garrison Relay disabled 16913 | -5/Garrison | Garrison Relay disabled 16950 | -5/Garrison | Garrison Relay disabled 17055 | -5/Garrison | Triggered checkpoint 17088 | -5/Garrison | Garrison Relay disabled 17172 | -5/Garrison | Discovered new exit (range 12) 17195 | -5/Garrison | Entered Factory 17392 | -5/Factory | Discovered new exit (range 14) 17495 | -5/Factory | First assault squad dispatched 17627 | -5/Factory | Discovered new exit (range 4) 17821 | -5/Factory | Identified exit to Garrison 17828 | -5/Factory | Discovered new exit (range 16) 17834 | -5/Factory | Entered Garrison 17962 | -5/Garrison | Triggered checkpoint 18184 | -5/Garrison | Triggered checkpoint 18184 | -5/Garrison | Garrison Relay disabled 18443 | -5/Garrison | Spotted B-75 Beast 18462 | -5/Garrison | Triggered checkpoint 18473 | -5/Garrison | Triggered checkpoint 18479 | -5/Garrison | Allies destroyed B-75 Beast 18487 | -5/Garrison | Triggered checkpoint 18527 | -5/Garrison | Lost 4 allies 18570 | -5/Garrison | Heavy support dispatched to Factory 18826 | -5/Garrison | Lost 4 allies 19056 | -5/Garrison | Triggered checkpoint 19208 | -5/Garrison | Triggered checkpoint 19233 | -5/Garrison | Garrison Relay disabled 19333 | -5/Garrison | Discovered new exit (range 14) 19398 | -5/Garrison | H-XX Assembler disabled 19456 | -5/Garrison | Found Prototype Device 19456 | -5/Garrison | Identified Active Sensor Suite 19753 | -5/Garrison | Build established: Botlord-Skirmisher 19789 | -5/Garrison | P-70 Sage assimilated allied Sentinel 6e 19928 | -5/Garrison | Expanded RIF knowledge: Code Merge 19951 | -5/Garrison | Discovered new exit (range 11) 19952 | -5/Garrison | Triggered checkpoint 19975 | -5/Garrison | Garrison Relay disabled 20099 | -5/Garrison | Entered Factory 20099 | -4/Factory | Accompanied by 6 allies 20099 | -4/Factory | Evolved 2 slots: Utility x2 20154 | -4/Factory | Identified exit to Garrison 20162 | -4/Factory | Entered Garrison 20162 | -4/Garrison | Accompanied by 3 allies 20195 | -4/Garrison | Lost 4 allies 20298 | -4/Garrison | Spotted B-86 Titan 20310 | -4/Garrison | Garrison Relay disabled 20356 | -4/Garrison | Allies destroyed B-86 Titan 20378 | -4/Garrison | Lost 5 parts (1n3u1w) 20506 | -4/Garrison | Triggered checkpoint 20506 | -4/Garrison | Triggered checkpoint 20521 | -4/Garrison | Spotted B-86 Titan 20560 | -4/Garrison | Lost 4 allies 20566 | -4/Garrison | Destroyed B-86 Titan 20596 | -4/Garrison | Triggered checkpoint 20645 | -4/Garrison | Lost 3 allies 20813 | -4/Garrison | Discovered new exit (range 8) 20874 | -4/Garrison | Triggered checkpoint 20912 | -4/Garrison | Lost 3 parts (1u2w) 20936 | -4/Garrison | Garrison Relay disabled 21097 | -4/Garrison | Discovered new exit (range 9) 21120 | -4/Garrison | Triggered checkpoint 21145 | -4/Garrison | Garrison Relay disabled 21195 | -4/Garrison | System corruption reached 10% 21196 | -4/Garrison | Garrison Relay disabled 21196 | -4/Garrison | Garrison Relay disabled 21240 | -4/Garrison | Lost 5 parts (2n2u1w) 21309 | -4/Garrison | Build established: Botlord-Tank 21313 | -4/Garrison | Garrison Relay disabled 21639 | -4/Garrison | Discovered new exit (range 10) 21686 | -4/Garrison | Triggered checkpoint 21744 | -4/Garrison | Garrison Relay disabled 21892 | -4/Garrison | Expanded RIF knowledge: Robot Detection 21971 | -4/Garrison | Entered Research 21971 | -3/Research | Evolved 2 slots: Propulsion x2 22318 | -3/Research | Discovered new exit (range 16) 22485 | -3/Research | Build established: Scavenger-Tank 22788 | -3/Research | Lost 4 parts (2n2u) 23054 | -3/Research | System corruption reached 10% 23076 | -3/Research | Build established: Botlord-Gunner 23085 | -3/Research | Lost 4 parts (2n2w) 23172 | -3/Research | Core integrity fell below 50% 23199 | -3/Research | Lost 16 parts (2p2n5u7w) 23342 | -3/Research | Entered Testing 23377 | -3/Testing | Garrison activated, responded to threat 23447 | -3/Testing | Found Prototype Energy Cannon 23447 | -3/Testing | Identified Hpw. Disruptor Cannon 23447 | -3/Testing | Spotted Alpha 7 23468 | -3/Testing | Build established: Mutant 23502 | -3/Testing | Found Prototype Energy Cannon 23502 | -3/Testing | Identified Cld. Nova Cannon 23515 | -3/Testing | Found Unknown Device 23515 | -3/Testing | Identified Launcher Loader 23603 | -3/Testing | Discovered new exit (range 9) 23612 | -3/Testing | Entered Research 23612 | -2/Research | Evolved 2 slots: Propulsion x1, Utility x1 23710 | -2/Research | Spotted B-90 Cyclops 23727 | -2/Research | Spotted B-90 Cyclops 23937 | -2/Research | Spotted B-90 Cyclops 23978 | -2/Research | Discovered new exit (range 5) 23988 | -2/Research | Entered Access 23988 | -1/Access | Evolved 2 slots: Power x1, Propulsion x1 24001 | -1/Access | Energy Cycler disabled 24172 | -1/Access | Spotted B-99 Colossus 24292 | -1/Access | Spotted B-99 Colossus 24316 | -1/Access | Build established: Botlord-Sprinter 24397 | -1/Access | Discovered new exit (range 10) 24400 | -1/Access | Entered Command 24406 | -1/Command | Lost 10 parts (2p3n3u2w) 24504 | -1/Command | Spotted Executioner 24504 | -1/Command | Spotted Executioner 24504 | -1/Command | Spotted Executioner 24504 | -1/Command | Spotted Executioner 24504 | -1/Command | Spotted Striker 24504 | -1/Command | Spotted Striker 24504 | -1/Command | Spotted Alpha 7 24504 | -1/Command | Spotted Alpha 7 24505 | -1/Command | Spotted B-99 Colossus 24508 | -1/Command | Spotted B-99 Colossus 24513 | -1/Command | Discovered new exit (range 8) 24515 | -1/Command | Core integrity fell below 50% 24520 | -1/Command | Core integrity fell below 20% 24520 | *** | Escaped! Last Messages --------------- 24517_ Knocked back. 24517_ Penetrated by Slug. 24517_ Slug penetrates Wall. 24517_ Acquired 3 matter. 24517_ Knocked back. 24517_ Impulse Thruster Array destroyed. 24517_ Penetrated by Slug. 24517_ Slug penetrates Wall. 24518_ Field strength at 31. 24518_ Field strength at 58. 24518_ Acquired 5 matter. 24519_ Field strength at 23. 24519_ Slug penetrates Wall. 24519_ Penetrated by Slug. 24519_ Slug penetrates Wall. 24519_ Penetrated by Slug. 24519_ Slug penetrates Wall. 24519_ Field strength at 50. 24520_ Field strength at 15. 24520_ Field strength at 42. Map ----- +----------------------------------------------------+ | | | | | | | | | | | | | | | | | | | | | ?????????????????????????????????????????????????? | | ?????????????????????????????????????????????????? | | ?????????????????????????????????????????????????? | | ?????????????????????????????????????????????????? | | ?????????????????????????????????????????????????? | | ?????????????????????????????????????????????????? | | ?????????????????????????????????????????????????? | | ?????????????????????????????????????????????????? | | ???????????????????##############????????????????? | | ???????????????????# % #????????????????? | | ???????????????????# % #########????????# | | ???????????????????# ^ ^BB;%;%#%#=### #???? | | ???????????????????# ^BB^E* K "###### | | ???????????????????# %K%E 7 %^ " | | ???????????????????# "" % % %" | | ???????????????????# @" 7 E % + | | ???????????????????# ^E " | | ???????????????????# ^ #"# | | ???????????????????# BB; # # # ##### | | ???????????????????# BB#########???# # | | ???????????????????# #???????????# # | | ???????????????????##############???????????# # | | ????????????????????????????????????????????# # | | ?????????????????????????????????????######## # | | ?????????????????????????????????????# # # | | ?????????????????????????????????????# [ # # | | ?????????????????????????????????????# # # | | ?????????????????????????????????????# # # | | ?????????????????????????????????????# # # | | ?????????????????????????????????????# + # | | ?????????????????????????????????????# # + | | ?????????????????????????????????????# # " | | ?????????????????????????????????????# # | | ?????????????????????????????????????# " = | | ?????????????????????????????????????# "[ [ | | ?????????????????????????????????????# " | | ?????????????????????????????????????+ " | | ?????????????????????????????????????# # # | | ?????????????????????????????????????######## | | ??????????????????????????????############### | +----------------------------------------------------+ Best States ------------- Heat Dissipation 77 Coolant Potential 120 Energy Generation 39 Energy Capacity 540 Matter Stores 367 Matter Capacity 500 Sight Range 16 Robot Scan Range 20 Terrain Scan Range 24 Terrain Scan Density 10 Armor Coverage 1650 Resistance: KI 30 Resistance: TH 15 Resistance: EM 90 Weapon Cycling 15 Evasion (%) 71 Target Analysis 12 Core Analysis 6 Armor Integrity Analysis 40 Recoil Reduction 5 Kinecelleration 40 Offensive Hacking 10 Defensive Hacking 10 Relay Coupler Types 6 Relay Coupler Value 224 Item Schematics ----------------- Adv. Myomer Leg | -3/Testing | Archive Adv. Variable Charge Gun | -3/Testing | Archive Prc. Matter Filter | -3/Testing | Archive Prc. Phase Gun | -3/Testing | Archive Robot Schematics ------------------ None Fabricated ------------ Nothing Alien Tech Used ----------------- None Achievements -------------- Gun Specialist Challenges ------------ None Game ------ Seed MiningImpactBrace Manual? 0 Play Time 02:29:35 Cumulative 349.7 hours Start 2024.04.18 @ 18:23:32 End 2024.04.18 @ 21:57:26 Sessions 1 Manual Loads 0 Difficulty Rogue Special Mode None Game No. 227 Rogue 227 Adventurer 0 Explorer 0 Win Type 0 Total 21 Types 14/2/2/1/1/0/0/1/0 Lore% 84 Gallery% 86 Achievement% 78 Wizard Run 0 Options --------- Layout 0 ASCII 0 Keyboard 1 Movement Numpad Keybinds 0 Fullscreen 2 Font 18/SmallcapsGlow Map View 76x50 Zoom Use 0% Tactical HUD 1 Map Filters NONE Filters NONE Steam 1 RUN: c0758281-b351-4a35-8553-414c10fa5ade